bitfinex/quotes_BTCUSD_20251016
["timestamp","ask_amount","ask_price","bid_price","bid_amount"]
[1760647522376,0.00015066,108040.0,108030.0,1.06194202]
[1760647522835,0.00015066,108040.0,108030.0,0.28512245]
[1760647523080,0.00015066,108040.0,108030.0,1.06194202]
[1760647523772,0.00015066,108040.0,108030.0,1.06394202]
[1760647523964,0.00015066,108040.0,108030.0,1.06194202]
[1760647524419,0.00015066,108040.0,108030.0,1.06294202]
[1760647525475,1e-08,108040.0,108030.0,1.06294202]
[1760647525688,1e-08,108040.0,108030.0,1.06298202]
[1760647526106,1e-08,108040.0,108030.0,1.06198202]
[1760647526267,1e-08,108040.0,108030.0,1.06398202]
[1760647527097,1e-08,108040.0,108030.0,1.4401643]
[1760647527838,1e-08,108040.0,108030.0,6.4401643]
[1760647529018,1e-08,108040.0,108030.0,6.4381643]
[1760647529390,1e-08,108040.0,108030.0,6.4401643]
[1760647530107,1e-08,108040.0,108030.0,6.40398202]
[1760647530308,1e-08,108040.0,108030.0,6.42253202]
[1760647530615,1e-08,108040.0,108030.0,0.68189473]
[1760647530811,1e-08,108040.0,108030.0,1.4587143]
[1760647531243,1e-08,108040.0,108030.0,0.28716245]
[1760647531366,1e-08,108040.0,108030.0,1.15770202]
[1760647531771,0.18508236,108060.0,108050.0,0.18509757]
[1760647531994,0.01993555,108060.0,108050.0,0.18509949]
[1760647532241,0.04493073,108060.0,108050.0,0.18509949]
[1760647532909,0.23001309,108060.0,108040.0,0.18511481]
[1760647533130,0.26337326,108060.0,108040.0,0.18511481]
[1760647534250,0.27262737,108060.0,108040.0,0.18511641]
[1760647534481,0.27262737,108060.0,108040.0,0.22307109]
[1760647534711,0.18511662,108040.0,108030.0,4e-05]
[1760647534933,0.20505217,108040.0,108030.0,0.18517375]
[1760647535150,0.01993555,108040.0,108030.0,0.18517375]
[1760647535852,0.20505217,108040.0,108030.0,4e-05]
[1760647536053,0.05611783,108040.0,108030.0,4e-05]
[1760647536272,0.05611783,108040.0,108030.0,0.18517375]
[1760647537020,0.24123445,108040.0,108030.0,0.18517375]
[1760647537237,0.03618228,108040.0,108030.0,0.18517375]
[1760647538047,0.02499518,108050.0,108040.0,0.18511662]
[1760647538251,0.02499518,108060.0,108050.0,0.18509949]
[1760647538461,0.24342313,108070.0,108050.0,0.18509949]
[1760647538661,0.03618228,108060.0,108050.0,0.18509949]
[1760647538862,0.24342313,108070.0,108050.0,0.18509949]
[1760647539069,0.03618228,108060.0,108050.0,0.18509949]
[1760647539472,0.22126464,108060.0,108040.0,0.19437245]
[1760647539677,0.24625982,108060.0,108040.0,0.19437245]
[1760647540095,0.06117746,108060.0,108050.0,0.18513949]
[1760647540296,0.03618228,108060.0,108050.0,0.18513949]
[1760647541488,0.22126464,108060.0,108050.0,4e-05]
[1760647541688,0.24625982,108060.0,108050.0,4e-05]
[1760647542539,0.22126464,108060.0,108050.0,4e-05]
[1760647543105,0.03618228,108060.0,108050.0,0.18513949]
[1760647543306,0.03618228,108060.0,108050.0,0.22216506]
[1760647544124,0.22126464,108060.0,108050.0,4e-05]
[1760647544505,5.01473036,108060.0,108050.0,4e-05]
[1760647544708,0.18508236,108060.0,108050.0,0.18513949]
[1760647545231,0.17966951,108070.0,108050.0,0.18513949]
[1760647546774,0.18508236,108060.0,108050.0,0.18513949]
[1760647546977,0.18508236,108060.0,108050.0,0.22216508]
[1760647547191,0.17966951,108070.0,108050.0,0.22216508]
[1760647547868,0.18506523,108070.0,108050.0,0.22216508]
[1760647550789,0.18506523,108070.0,108060.0,0.18508236]
[1760647551244,0.31601474,108080.0,108060.0,0.18508236]
[1760647551447,0.18506523,108070.0,108060.0,0.19539753]
[1760647552108,0.08603126,108080.0,108070.0,0.18506523]
[1760647552315,0.03825836,108080.0,108070.0,0.18506523]
[1760647552624,0.22330647,108080.0,108070.0,0.18506523]
[1760647553590,0.03825836,108080.0,108070.0,0.18510523]
[1760647553793,0.03825836,108080.0,108070.0,0.22213082]
[1760647554049,0.22330647,108080.0,108070.0,0.18510523]
[1760647554254,0.03825836,108080.0,108070.0,0.18514523]
[1760647554620,0.22330647,108080.0,108070.0,0.18514523]
[1760647554847,0.22330647,108080.0,108070.0,0.18518523]
[1760647555415,0.22330647,108080.0,108070.0,0.18522523]
[1760647555772,0.22330647,108080.0,108070.0,0.18526523]
[1760647556589,0.23280923,108090.0,108070.0,0.22229999]
[1760647556786,0.18504811,108080.0,108070.0,0.22229999]
[1760647557542,0.21438051,108090.0,108070.0,0.22229999]
[1760647557736,0.18504811,108080.0,108070.0,0.22229999]
[1760647558265,0.21438051,108090.0,108070.0,0.22229999]
[1760647558468,0.18504811,108080.0,108070.0,0.22229999]
[1760647558880,0.21438463,108090.0,108070.0,0.22229999]
[1760647559075,0.19444504,108090.0,108070.0,0.22229999]
[1760647559334,0.23062732,108090.0,108080.0,0.18504811]
[1760647559628,0.2691341,108090.0,108070.0,0.22229999]
[1760647559865,0.2691341,108090.0,108070.0,0.18526523]
[1760647560074,0.23295182,108090.0,108070.0,0.18526523]
[1760647560526,0.25987061,108090.0,108080.0,0.18504811]
[1760647560743,0.03865734,108090.0,108080.0,0.18504811]
[1760647562077,0.03865734,108090.0,108080.0,0.18508811]
[1760647562542,0.03865734,108090.0,108080.0,0.18512811]
[1760647562742,0.0376094,108090.0,108080.0,0.18512811]
[1760647562951,0.0002,108100.0,108090.0,0.18503099]
[1760647563562,0.18521387,108100.0,108090.0,0.18503099]
[1760647564510,0.0002,108100.0,108090.0,0.18503099]
[1760647564713,0.0376392,108100.0,108090.0,0.18503099]
[1760647564911,0.22265307,108100.0,108090.0,0.18503099]
[1760647565137,0.22265307,108100.0,108090.0,0.22298496]
[1760647565782,0.22265307,108100.0,108090.0,0.22302496]
[1760647566132,0.22265307,108100.0,108090.0,0.22306496]
[1760647566342,0.22265307,108100.0,108090.0,0.03803397]
[1760647566539,0.22265307,108100.0,108090.0,8e-05]
[1760647566738,0.22265307,108100.0,108090.0,0.18511099]
[1760647567419,0.0376392,108100.0,108090.0,0.18511099]
[1760647567561,0.22265307,108100.0,108090.0,0.18511099]
[1760647568252,0.0376392,108100.0,108090.0,0.18511099]
[1760647569873,0.22265307,108100.0,108090.0,0.18511099]
[1760647570458,0.0376392,108100.0,108090.0,0.18511099]
[1760647571706,0.22265307,108100.0,108090.0,0.18511099]
[1760647572338,0.0376392,108100.0,108090.0,0.18511099]
[1760647573526,0.0376392,108100.0,108090.0,0.62655538]
[1760647573732,0.0376392,108100.0,108090.0,0.7162455]
[1760647575535,0.0376392,108100.0,108090.0,0.27580111]
[1760647578394,0.0376392,108100.0,108090.0,0.77730944]
[1760647579292,0.0002,108100.0,108090.0,0.77730944]
[1760647580204,0.03870537,108100.0,108090.0,0.27580111]
[1760647580404,0.07066595,108120.0,108110.0,0.18499676]
[1760647580808,0.07066595,108120.0,108100.0,0.18501387]
[1760647581252,0.07066595,108120.0,108110.0,0.18499676]
[1760647581850,0.1082228,108120.0,108110.0,0.18499676]
[1760647582050,0.1082228,108120.0,108110.0,0.22199782]
[1760647584932,0.1082228,108120.0,108110.0,0.03700106]
[1760647586245,0.18500654,108110.0,108090.0,0.28405265]
[1760647586385,0.18500654,108110.0,108100.0,0.18501387]
[1760647586594,0.1082228,108120.0,108100.0,0.18501387]
[1760647586820,0.18499676,108110.0,108090.0,0.08977012]
[1760647587075,0.18499676,108110.0,108090.0,8e-05]
[1760647587302,0.18501387,108100.0,108090.0,8e-05]
[1760647588581,0.52501387,108100.0,108090.0,8e-05]
[1760647588828,0.54495346,108100.0,108090.0,8e-05]
[1760647589046,5.43570822,108100.0,108090.0,8e-05]
[1760647589463,5.46906839,108100.0,108090.0,8e-05]
[1760647589676,5.55875047,108100.0,108090.0,8e-05]
[1760647589889,5.53382599,108100.0,108090.0,8e-05]
[1760647590100,5.55101989,108100.0,108090.0,8e-05]
[1760647590519,5.56769998,108100.0,108090.0,8e-05]
[1760647591161,0.52503099,108090.0,108080.0,8e-05]
[1760647591410,0.71778269,108090.0,108080.0,8e-05]
[1760647591866,0.34,108060.0,108050.0,0.21213693]
[1760647592087,0.34,108060.0,108050.0,0.21263899]
[1760647592538,0.34,108060.0,108050.0,0.19485414]
[1760647592708,0.29599658,108090.0,108070.0,0.18506523]
[1760647592709,0.27105905,108090.0,108070.0,0.18506523]
[1760647592908,0.18504811,108080.0,108070.0,0.22300388]
[1760647593128,0.25774779,108090.0,108070.0,0.22300388]
[1760647593520,0.18504811,108080.0,108070.0,0.22300388]
[1760647593752,0.18504811,108080.0,108060.0,0.19432123]
[1760647593966,0.18506523,108070.0,108060.0,0.19432123]
[1760647594712,0.18508236,108060.0,108050.0,0.19485414]
[1760647594882,0.20500796,108070.0,108060.0,0.18508236]
[1760647595043,0.18506523,108070.0,108050.0,0.19485414]
[1760647595764,0.18506523,108070.0,108060.0,0.18508236]
[1760647595963,0.18506523,108070.0,108050.0,0.19485414]
[1760647596326,0.18506523,108070.0,108050.0,0.18560155]
[1760647596327,0.18508236,108060.0,108050.0,0.18560155]
[1760647596542,0.20500796,108070.0,108050.0,0.18560155]
[1760647596736,0.23918373,108080.0,108060.0,0.18508236]
[1760647596900,0.18506523,108070.0,108060.0,0.18508236]
[1760647597306,0.29163264,108080.0,108060.0,0.18508236]
[1760647597460,0.18506523,108070.0,108060.0,0.18508236]
[1760647599412,0.26669366,108080.0,108060.0,0.18508236]
[1760647599626,0.22213439,108080.0,108060.0,0.22307625]
[1760647599834,0.19430202,108080.0,108060.0,0.22307625]
[1760647600067,0.2304843,108080.0,108070.0,0.18506523]
[1760647600696,0.18506523,108070.0,108060.0,0.18508236]
[1760647600900,0.25042703,108080.0,108060.0,0.18508236]
[1760647601135,0.2304843,108080.0,108060.0,0.18508236]
[1760647601508,0.18506523,108070.0,108060.0,0.18508236]
[1760647601764,0.25042703,108080.0,108060.0,0.18508236]
[1760647602016,0.18506523,108070.0,108060.0,0.18508236]
[1760647602213,0.18506523,108070.0,108060.0,0.22307625]
[1760647602491,0.25042703,108080.0,108070.0,0.18506523]
[1760647602702,0.2304843,108080.0,108070.0,0.18506523]
[1760647602910,0.0477751,108090.0,108080.0,0.18504811]
[1760647603116,0.18503099,108090.0,108080.0,0.18504811]
[1760647603531,0.24203478,108100.0,108080.0,0.18504811]
[1760647603765,0.02782749,108100.0,108090.0,0.18503099]
[1760647604027,0.18500345,108110.0,108100.0,0.18501387]
[1760647604232,0.27002667,108120.0,108100.0,0.18501387]
[1760647604427,0.22225939,108120.0,108100.0,0.18501387]
[1760647604641,0.22225902,108120.0,108110.0,0.18499676]
[1760647605726,0.03727937,108120.0,108110.0,0.72449898]
[1760647606120,0.18516358,108130.0,108110.0,0.22299065]
[1760647606268,0.03725697,108120.0,108110.0,0.22299065]
[1760647606466,0.18531408,108130.0,108110.0,0.18499676]
[1760647606700,0.22213438,108130.0,108110.0,0.18499676]
[1760647606907,0.18497965,108120.0,108110.0,0.18499676]
[1760647607377,0.22213438,108130.0,108110.0,0.18499676]
[1760647607579,0.18497965,108120.0,108110.0,0.18499676]
[1760647607787,0.22213438,108130.0,108110.0,0.18499676]
[1760647608005,0.18497965,108120.0,108110.0,0.18499676]
[1760647608328,0.18497965,108120.0,108110.0,4e-05]
[1760647609180,0.25126828,108130.0,108110.0,0.18503676]
[1760647609406,0.2313825,108130.0,108110.0,0.18503676]
[1760647610713,0.2313825,108130.0,108120.0,0.18497965]
[1760647611668,0.0371708,108130.0,108120.0,0.18497965]
[1760647612935,0.22213334,108130.0,108120.0,0.18497965]
[1760647613305,0.0371708,108130.0,108120.0,0.18501965]
[1760647614378,0.0371708,108130.0,108120.0,0.68652798]
[1760647615238,0.0371708,108130.0,108120.0,0.18501965]
[1760647615482,0.0371708,108130.0,108120.0,0.7762181]
[1760647616027,0.0371708,108130.0,108120.0,0.27470977]
[1760647616230,0.0371708,108130.0,108120.0,0.7762181]
[1760647616867,0.0371708,108130.0,108120.0,0.7772181]
[1760647618273,0.0371708,108130.0,108120.0,0.27570977]
[1760647618519,0.0371708,108130.0,108120.0,0.7772181]
[1760647618860,0.0371708,108130.0,108120.0,0.27570977]
[1760647619257,0.0371708,108130.0,108120.0,0.7772181]
[1760647620319,0.0371708,108130.0,108120.0,0.27570977]
[1760647620525,0.0003505,108130.0,108120.0,0.7772181]
[1760647621023,0.0003505,108130.0,108120.0,0.27570977]
[1760647621450,0.03709421,108130.0,108120.0,0.27570977]
[1760647621704,0.0003505,108130.0,108120.0,0.7772181]
[1760647622297,0.03795589,108130.0,108120.0,0.7772181]
[1760647622925,0.0003505,108130.0,108120.0,0.7772181]
[1760647623359,0.0003505,108130.0,108120.0,0.27570977]
[1760647623603,0.0003505,108130.0,108120.0,0.7772181]
[1760647624695,0.0003505,108130.0,108120.0,0.27570977]
[1760647625131,0.03795784,108130.0,108120.0,0.27570977]
[1760647625563,0.0003505,108130.0,108120.0,0.71677279]
[1760647626038,0.03817233,108130.0,108120.0,0.71677279]
[1760647626262,0.0003505,108130.0,108120.0,0.71677279]
[1760647627413,0.0003505,108130.0,108120.0,1.15783581]
[1760647627816,0.18491124,108160.0,108150.0,0.18492834]
[1760647628025,0.21273413,108170.0,108150.0,0.18492834]
[1760647628233,0.21273413,108170.0,108150.0,0.22191281]
[1760647628234,0.2128846,108170.0,108150.0,0.22191281]
[1760647628679,0.18491124,108160.0,108150.0,0.18492834]
[1760647629077,0.03691118,108160.0,108150.0,0.18492834]
[1760647629497,0.00015047,108170.0,108160.0,0.18491124]
[1760647629708,0.18504461,108170.0,108160.0,0.18491124]
[1760647630330,0.03737398,108170.0,108160.0,0.18491124]
[1760647630967,0.03737398,108170.0,108160.0,0.18495124]
[1760647632522,0.03737398,108170.0,108160.0,0.62601426]
[1760647633370,0.03737398,108170.0,108160.0,0.27464136]
[1760647633572,0.03737398,108170.0,108160.0,0.71570438]
[1760647634612,0.03737398,108170.0,108160.0,0.27464136]
[1760647635103,0.03737398,108170.0,108160.0,0.71670438]
[1760647635310,0.03737398,108170.0,108160.0,0.27564136]
[1760647635520,0.03237398,108170.0,108160.0,0.71670438]
[1760647635727,0.01737927,108180.0,108170.0,0.18489414]
[1760647636367,0.20225632,108180.0,108170.0,0.18489414]
[1760647637048,0.22209796,108180.0,108170.0,0.18489414]
[1760647637891,0.24703845,108180.0,108170.0,0.18489414]
[1760647638102,0.22209796,108180.0,108170.0,0.18489414]
[1760647638341,0.22209796,108180.0,108170.0,0.18493414]
[1760647639392,0.24703845,108180.0,108170.0,4e-05]
[1760647640024,0.28492998,108180.0,108170.0,4e-05]
[1760647640462,0.18489414,108170.0,108160.0,0.1849466]
[1760647640674,0.20473578,108170.0,108160.0,0.22285744]
[1760647641097,0.20473578,108170.0,108160.0,0.22286208]
[1760647641303,0.26293026,108170.0,108160.0,4e-05]
[1760647641721,0.5946138,108170.0,108160.0,4e-05]
[1760647641928,0.18494058,108150.0,108130.0,0.21255784]
[1760647642174,0.34,108140.0,108130.0,0.30239843]
[1760647642356,0.35984164,108140.0,108130.0,0.30239843]
[1760647642567,0.35984164,108140.0,108130.0,0.2840017]
[1760647643036,0.35984164,108140.0,108130.0,0.00015047]
[1760647643037,0.54478708,108140.0,108130.0,0.00015047]
[1760647643254,0.54478708,108140.0,108130.0,0.18511301]
[1760647643256,0.41789808,108140.0,108130.0,0.18511301]
[1760647643469,0.38472297,108140.0,108130.0,0.18511301]
[1760647643685,0.56966841,108140.0,108130.0,0.22212504]
[1760647644166,0.56966841,108140.0,108130.0,0.00015047]
[1760647644395,0.56966841,108140.0,108130.0,0.18511301]
[1760647644888,0.57796219,108140.0,108130.0,0.00015047]
[1760647645111,0.62772486,108140.0,108130.0,0.00015047]
[1760647645583,5.46038003,108140.0,108130.0,0.00015047]
[1760647645856,5.51743071,108140.0,108130.0,0.00015047]
[1760647646104,5.05079282,108130.0,108120.0,4e-05]
[1760647646299,5.15417073,108130.0,108120.0,4e-05]
[1760647646502,0.18497965,108120.0,108110.0,4e-05]
[1760647646712,0.25459737,108120.0,108110.0,0.0001905]
[1760647646920,0.28778066,108120.0,108110.0,0.0001905]
[1760647647343,0.23800458,108120.0,108110.0,0.18518726]
[1760647647550,0.26287971,108120.0,108110.0,0.0001905]
[1760647647748,0.23800458,108120.0,108110.0,0.0001905]
[1760647648390,0.26287002,108120.0,108110.0,0.0001905]
[1760647651343,0.22968673,108120.0,108110.0,0.0001905]
[1760647651549,0.23872715,108120.0,108110.0,0.0001905]
[1760647651768,0.26287002,108120.0,108110.0,0.0001905]
[1760647651975,5.15361094,108120.0,108110.0,0.0001905]
[1760647652174,5.15355517,108120.0,108110.0,0.0001905]
[1760647653247,5.10377909,108120.0,108110.0,0.0001905]
[1760647653678,5.12860178,108120.0,108110.0,0.0001905]
[1760647654313,5.21828386,108120.0,108110.0,0.0001905]
[1760647654522,5.24610866,108120.0,108110.0,0.0001905]
[1760647654941,0.32677858,108120.0,108110.0,0.0001905]
[1760647655158,0.23762714,108120.0,108110.0,0.18518726]
[1760647655371,0.05264749,108120.0,108110.0,0.18518726]
[1760647655604,0.21280445,108120.0,108110.0,0.18518726]
[1760647655818,0.0278248,108120.0,108110.0,0.18518726]
[1760647656028,0.18496254,108130.0,108120.0,0.18497965]
[1760647656235,0.02781804,108130.0,108120.0,0.18497965]
[1760647656653,0.04466433,108150.0,108130.0,0.18496254]
[1760647656872,0.02781423,108150.0,108140.0,0.18494544]
[1760647657083,0.21274257,108150.0,108140.0,0.18494544]
[1760647657291,0.18492834,108150.0,108140.0,0.19526616]
[1760647657559,0.04765419,108160.0,108150.0,0.18492834]
[1760647657772,0.21272379,108160.0,108140.0,0.19526616]
[1760647658396,0.21272379,108160.0,108150.0,0.18492834]
[1760647658603,0.21272379,108160.0,108150.0,0.18496834]
[1760647658815,0.21272379,108160.0,108150.0,4e-05]
[1760647659262,0.27372876,108160.0,108150.0,4e-05]
[1760647659500,5.11168159,108160.0,108150.0,4e-05]
[1760647659712,5.22120531,108160.0,108150.0,4e-05]
[1760647659918,5.23785387,108160.0,108150.0,4e-05]
[1760647660144,5.27092425,108160.0,108150.0,4e-05]
[1760647661884,5.18124217,108160.0,108150.0,4e-05]
[1760647662124,5.15627069,108160.0,108150.0,4e-05]
[1760647662394,5.12320031,108160.0,108150.0,4e-05]
[1760647663047,0.29355231,108160.0,108150.0,4e-05]
[1760647663262,0.21272379,108160.0,108150.0,4e-05]
[1760647664390,5.06717639,108160.0,108150.0,4e-05]
[1760647664605,5.08701803,108160.0,108150.0,4e-05]
[1760647665036,0.25737003,108160.0,108150.0,4e-05]
[1760647665289,0.23752839,108160.0,108150.0,4e-05]
[1760647666808,0.21272379,108160.0,108150.0,4e-05]
[1760647668659,0.21272379,108160.0,108150.0,0.18496834]
[1760647668883,0.21272379,108160.0,108150.0,0.22195967]
[1760647669531,0.21272379,108160.0,108150.0,4e-05]
[1760647669738,0.18491124,108160.0,108150.0,4e-05]
[1760647671902,0.22109352,108160.0,108150.0,4e-05]
[1760647672734,5.07554612,108160.0,108150.0,4e-05]
[1760647672945,0.24093516,108160.0,108150.0,4e-05]
[1760647673195,0.23243102,108160.0,108150.0,4e-05]
[1760647673400,5.06207902,108160.0,108150.0,4e-05]
[1760647673601,0.24193516,108160.0,108150.0,4e-05]
[1760647673781,0.22209352,108160.0,108150.0,4e-05]
[1760647677134,0.18591124,108160.0,108150.0,4e-05]
[1760647677337,0.18591124,108160.0,108150.0,0.18496834]
[1760647677338,0.001,108160.0,108150.0,0.18496834]
[1760647677505,0.18591124,108160.0,108150.0,0.22195963]
[1760647678088,0.18491124,108160.0,108150.0,0.22195963]
[1760647678292,0.19319237,108170.0,108150.0,0.22195963]
[1760647678438,0.18491124,108160.0,108150.0,0.18496834]
[1760647678636,0.23270851,108170.0,108150.0,0.18496834]
[1760647678841,0.23270851,108170.0,108160.0,0.18491124]
[1760647678842,0.02796067,108170.0,108160.0,0.18491124]
[1760647679048,0.00015039,108170.0,108160.0,0.18491124]
[1760647679240,0.18504453,108170.0,108160.0,0.2218992]
[1760647679435,0.18504453,108170.0,108160.0,0.18491124]
[1760647679636,0.00015039,108170.0,108160.0,0.18491124]
[1760647680371,0.18504453,108170.0,108160.0,0.18491124]
[1760647681155,0.18491124,108160.0,108150.0,4e-05]
[1760647681613,0.18487124,108160.0,108150.0,4e-05]
[1760647681829,0.18487124,108160.0,108150.0,0.18496834]
[1760647682038,0.18487124,108160.0,108150.0,0.03703106]
[1760647682243,0.18487124,108160.0,108150.0,4e-05]
[1760647683666,0.22975273,108170.0,108150.0,0.18496829]
[1760647683879,0.18491124,108160.0,108150.0,4e-05]
[1760647685033,0.26580172,108160.0,108150.0,4e-05]
[1760647685243,0.2988721,108160.0,108150.0,4e-05]
[1760647685453,0.35224137,108160.0,108150.0,4e-05]
[1760647685990,0.2988721,108160.0,108150.0,4e-05]
[1760647687257,0.32668439,108160.0,108150.0,4e-05]
[1760647687472,0.30187979,108160.0,108150.0,4e-05]
[1760647687679,0.35165587,108160.0,108150.0,4e-05]
[1760647688317,0.35183537,108160.0,108150.0,4e-05]
[1760647688521,0.41216386,108160.0,108150.0,4e-05]
[1760647688898,0.41316386,108160.0,108150.0,4e-05]
[1760647689137,0.37891398,108160.0,108150.0,4e-05]
[1760647689358,5.20956198,108160.0,108150.0,4e-05]
[1760647690402,0.35284011,108160.0,108150.0,4e-05]
[1760647691666,0.30306403,108160.0,108150.0,4e-05]
[1760647691846,0.32800877,108160.0,108150.0,4e-05]
[1760647692104,0.30306403,108160.0,108150.0,4e-05]
[1760647693395,0.35284011,108160.0,108150.0,4e-05]
[1760647693614,0.32801311,108160.0,108150.0,4e-05]
[1760647693845,0.04585268,108160.0,108150.0,0.18496834]
[1760647694088,0.0209036,108160.0,108150.0,0.18496834]
[1760647694335,0.18591124,108160.0,108150.0,0.18496834]
[1760647694745,0.18491124,108160.0,108150.0,0.18496834]
[1760647695401,0.29097626,108170.0,108150.0,0.18496834]
[1760647695618,0.07281351,108170.0,108160.0,0.18491124]
[1760647695801,0.04500307,108170.0,108160.0,0.18491124]
[1760647696057,0.00015039,108170.0,108160.0,0.18491124]
[1760647696922,0.18504453,108170.0,108160.0,0.18491124]
[1760647697760,0.00015039,108170.0,108160.0,0.18491124]
[1760647698211,0.00015039,108170.0,108160.0,0.69651817]
[1760647698949,0.00015039,108170.0,108160.0,1.28746562]
[1760647699617,0.00015039,108170.0,108160.0,1.28846562]
[1760647700065,0.00015039,108170.0,108160.0,1.32517196]
[1760647700276,0.00015039,108170.0,108160.0,1.28846562]
[1760647700971,0.07285344,108210.0,108190.0,0.18485996]
[1760647701218,0.07335491,108210.0,108190.0,0.20427034]
[1760647701678,0.07335491,108210.0,108200.0,0.18484288]
[1760647701886,0.00050147,108210.0,108200.0,0.20332716]
[1760647702110,0.03902094,108210.0,108200.0,0.18484288]
[1760647702315,0.18532727,108210.0,108200.0,0.18484288]
[1760647702844,0.18532727,108210.0,108200.0,0.20242366]
[1760647703219,0.00050147,108210.0,108200.0,0.20242366]
[1760647703446,0.18532727,108210.0,108200.0,0.20242366]
[1760647704213,0.22226683,108210.0,108200.0,0.20242366]
[1760647704797,0.03744103,108210.0,108200.0,0.20242366]
[1760647705004,0.22226683,108210.0,108200.0,0.20242366]
[1760647705213,0.03744103,108210.0,108200.0,0.20242366]
[1760647705609,0.03744103,108210.0,108200.0,0.20246366]
[1760647706024,0.22226683,108210.0,108200.0,0.20246366]
[1760647706226,0.03744103,108210.0,108200.0,0.20246366]
[1760647706441,0.03744103,108210.0,108200.0,0.70372099]
[1760647707716,0.03744103,108210.0,108200.0,0.79341111]
[1760647707937,0.00050147,108210.0,108200.0,0.79341111]
[1760647708366,0.00050147,108210.0,108200.0,0.79441111]
[1760647708570,0.00050147,108210.0,108200.0,0.79341111]
[1760647708774,0.00050147,108210.0,108200.0,0.08973012]
[1760647708991,0.18532727,108210.0,108200.0,0.00104]
[1760647709262,5.05115755,108210.0,108200.0,1e-08]
[1760647709474,0.18489414,108170.0,108160.0,0.01839673]
[1760647709616,0.18487705,108180.0,108160.0,0.20330797]
[1760647709817,0.18489414,108170.0,108160.0,0.20330797]
[1760647710022,0.18489414,108170.0,108150.0,0.19421421]
[1760647710227,0.18489414,108170.0,108150.0,4e-05]
[1760647710228,0.18491124,108160.0,108150.0,4e-05]
[1760647710486,0.1700798,108170.0,108150.0,4e-05]
[1760647710604,0.18491124,108160.0,108150.0,0.00019039]
[1760647711015,0.18491124,108160.0,108150.0,0.18511873]
[1760647711441,0.22171847,108160.0,108150.0,0.18511873]
[1760647712063,0.22171847,108160.0,108150.0,0.00019039]
[1760647712284,0.26288226,108160.0,108150.0,0.00019039]
[1760647712716,0.22171847,108160.0,108150.0,0.00019039]
[1760647713138,5.05136647,108160.0,108150.0,0.00019039]
[1760647713377,5.10738835,108160.0,108150.0,0.00019039]
[1760647714031,5.13218155,108160.0,108150.0,0.00019039]
[1760647714459,5.16543617,108160.0,108150.0,0.00019039]
[1760647714709,5.28293578,108160.0,108150.0,0.00019039]
[1760647714916,5.2752707,108160.0,108150.0,0.00019039]
[1760647715119,5.2752707,108160.0,108150.0,1e-08]
[1760647715120,5.25814258,108160.0,108150.0,1e-08]
[1760647715368,5.25914258,108160.0,108150.0,1e-08]
[1760647715998,5.25814258,108160.0,108150.0,1e-08]
[1760647716205,5.28292999,108160.0,108150.0,1e-08]
[1760647716421,5.15844068,108160.0,108150.0,1e-08]
[1760647716638,5.12518606,108160.0,108150.0,1e-08]
[1760647717687,5.12318606,108160.0,108150.0,1e-08]
[1760647717906,5.12418606,108160.0,108150.0,1e-08]
[1760647720025,5.16196551,108160.0,108150.0,1e-08]
[1760647720463,5.28490221,108160.0,108150.0,1e-08]
[1760647720661,5.15903785,108160.0,108150.0,1e-08]
[1760647721096,0.2683177,108160.0,108150.0,1e-08]
[1760647721312,0.2683177,108160.0,108150.0,0.18492835]
[1760647721313,0.03877945,108160.0,108150.0,0.18492835]
[1760647721942,0.001,108160.0,108150.0,0.18492835]
[1760647722175,0.03773053,108170.0,108160.0,0.18491124]
[1760647722405,0.18487782,108180.0,108160.0,0.2218952]
[1760647722818,0.18487782,108180.0,108170.0,0.18489414]
[1760647723249,0.18487782,108180.0,108160.0,0.2218952]
[1760647723879,0.18489414,108170.0,108160.0,0.03698396]
[1760647724089,0.18491124,108160.0,108150.0,1e-08]
[1760647724319,0.18491124,108160.0,108150.0,0.18492835]
[1760647724530,0.22264725,108170.0,108150.0,0.18492835]
[1760647724740,0.18491124,108160.0,108150.0,0.18492835]
[1760647724941,0.22264725,108170.0,108150.0,0.22284003]
[1760647725149,0.18491124,108160.0,108150.0,0.03791169]
[1760647725367,0.18491124,108160.0,108150.0,1e-08]
[1760647726859,0.22264725,108170.0,108150.0,0.18492835]
[1760647727065,0.18491124,108160.0,108150.0,1e-08]
[1760647727643,0.18491124,108160.0,108150.0,0.18492835]
[1760647728084,0.18491124,108160.0,108150.0,1e-08]
[1760647729136,0.18491124,108160.0,108150.0,0.18492835]
[1760647729361,0.22264725,108170.0,108160.0,0.18491124]
[1760647729559,0.03775311,108170.0,108160.0,0.18491124]
[1760647729787,0.22264725,108170.0,108160.0,0.18491124]
[1760647729993,0.18491124,108160.0,108150.0,1e-08]
[1760647730205,0.18491124,108160.0,108150.0,0.18492835]
[1760647730423,0.18491124,108160.0,108150.0,1e-08]
[1760647731492,0.18491124,108160.0,108150.0,4.001e-05]
[1760647732419,0.18491124,108160.0,108150.0,0.18496835]
[1760647733177,0.24263581,108170.0,108150.0,0.18496835]
[1760647733410,0.18491124,108160.0,108150.0,0.18496835]
[1760647734043,0.18491124,108160.0,108150.0,4.001e-05]
[1760647734693,0.18491124,108160.0,108150.0,0.18496835]
[1760647735120,0.18491124,108160.0,108150.0,4.001e-05]
[1760647735342,0.24263581,108170.0,108150.0,0.18496778]
[1760647735556,0.18491124,108160.0,108150.0,0.18496835]
[1760647735791,0.18491124,108160.0,108150.0,4.001e-05]
[1760647736252,0.18491124,108160.0,108150.0,0.18496835]
[1760647737335,0.24263581,108170.0,108150.0,0.18496835]
[1760647737579,0.18491124,108160.0,108150.0,0.18496835]
[1760647737801,0.18491124,108160.0,108150.0,0.22195966]
[1760647738026,0.18491124,108160.0,108150.0,4.001e-05]
[1760647739154,0.22109352,108160.0,108150.0,4.001e-05]
[1760647739371,0.26570153,108160.0,108150.0,4.001e-05]
[1760647741172,0.08079029,108160.0,108150.0,0.18496835]
[1760647741398,0.22109352,108160.0,108150.0,0.18496835]
[1760647741629,0.26570153,108160.0,108150.0,4.001e-05]
[1760647741846,0.26570153,108160.0,108150.0,0.18496835]
[1760647742060,0.30067784,108170.0,108150.0,0.2219595]
[1760647742272,0.18491124,108160.0,108150.0,0.18496835]
[1760647742715,0.30067784,108170.0,108150.0,0.18496835]
[1760647742959,0.26742322,108170.0,108150.0,0.18496835]
[1760647743383,0.18491124,108160.0,108150.0,0.18496835]
[1760647743616,0.26742322,108170.0,108150.0,0.18496835]
[1760647743843,0.26742322,108170.0,108150.0,0.22288423]
[1760647744056,0.18491124,108160.0,108150.0,0.22288423]
[1760647744300,0.26742322,108170.0,108150.0,0.22288423]
[1760647744540,0.11871136,108170.0,108160.0,0.18491124]
[1760647744757,0.05774167,108170.0,108160.0,0.18491124]
[1760647744976,0.03792107,108170.0,108160.0,0.19433612]
[1760647745416,0.26661206,108180.0,108170.0,0.18489414]
[1760647745661,0.08173501,108180.0,108170.0,0.18489414]
[1760647745890,0.037127,108180.0,108170.0,0.18489414]
[1760647746348,0.04460801,108190.0,108180.0,0.18487705]